[Event "Titled Tuesday Blitz November 08 Late 2022"]
[White "Alfaro, William"]
[Black "Chernomordik, Pavel"]
[WhiteFideId "6100457"]
[BlackFideId "2804530"]
[WhiteElo "2096"]
[BlackElo "2192"]
[Result "1-0"]
[Round "05"]
[TimeControl "180+1"]
[Date "2022.11.09"]
[WhiteClock "0:00:48"]
[BlackClock "0:00:37"]

1. Nf3 {[%clk 0:03:00]}  g6 {[%clk 0:02:59]} 2. g3 {[%clk 0:03:00]}  Bg7 {[%clk 0:02:59]} 3. Bg2 {[%clk 0:02:55]}  e5 {[%clk 0:02:58]} 4. d3 {[%clk 0:02:48]}  Nc6 {[%clk 0:02:57]} 5. O-O {[%clk 0:02:47]}  d6 {[%clk 0:02:57]} 6. e4 {[%clk 0:02:47]}  Nge7 {[%clk 0:02:56]} 7. Bg5 {[%clk 0:02:47]}  h6 {[%clk 0:02:55]} 8. Be3 {[%clk 0:02:46]}  O-O {[%clk 0:02:55]} 9. Qd2 {[%clk 0:02:46]}  Kh7 {[%clk 0:02:54]} 10. c3 {[%clk 0:02:47]}  f5 {[%clk 0:02:53]} 11. exf5 {[%clk 0:02:45]}  Nxf5 {[%clk 0:02:52]} 12. Na3 {[%clk 0:02:42]}  d5 {[%clk 0:02:50]} 13. d4 {[%clk 0:02:36]}  e4 {[%clk 0:02:48]} 14. Ne1 {[%clk 0:02:33]}  Nxe3 {[%clk 0:02:45]} 15. fxe3 {[%clk 0:02:30]}  Rxf1+ {[%clk 0:02:44]} 16. Bxf1 {[%clk 0:02:30]}  h5 {[%clk 0:02:40]} 17. Ng2 {[%clk 0:02:30]}  g5 {[%clk 0:02:39]} 18. c4 {[%clk 0:02:29]}  Ne7 {[%clk 0:02:36]} 19. Rc1 {[%clk 0:02:21]}  c6 {[%clk 0:02:35]} 20. Nc2 {[%clk 0:02:16]}  Be6 {[%clk 0:02:33]} 21. b3 {[%clk 0:02:13]}  Qd7 {[%clk 0:02:29]} 22. Be2 {[%clk 0:02:11]}  Bg4 {[%clk 0:02:28]} 23. Rf1 {[%clk 0:02:09]}  Kg6 {[%clk 0:02:23]} 24. Bxg4 {[%clk 0:02:01]}  Qxg4 {[%clk 0:02:21]} 25. Qd1 {[%clk 0:02:02]}  Qe6 {[%clk 0:02:15]} 26. h4 {[%clk 0:02:01]}  Qh3 {[%clk 0:01:59]} 27. Qe1 {[%clk 0:01:55]}  Bh6 {[%clk 0:01:51]} 28. Rf2 {[%clk 0:01:29]}  Nf5 {[%clk 0:01:45]} 29. Qf1 {[%clk 0:01:25]}  Nxg3 {[%clk 0:01:24]} 30. Nf4+ {[%clk 0:01:23]}  gxf4 {[%clk 0:01:22]} 31. Qxh3 {[%clk 0:01:23]}  Nf5 {[%clk 0:01:17]} 32. exf4 {[%clk 0:01:19]}  Kf6 {[%clk 0:01:16]} 33. Rg2 {[%clk 0:01:10]}  Re8 {[%clk 0:01:08]} 34. Ne3 {[%clk 0:01:06]}  Nxd4 {[%clk 0:01:05]} 35. cxd5 {[%clk 0:01:04]}  Bxf4 {[%clk 0:01:00]} 36. Rf2 {[%clk 0:00:49]}  Nf3+ {[%clk 0:00:54]} 37. Rxf3 {[%clk 0:00:49]}  exf3 {[%clk 0:00:54]} 38. Qxf3 {[%clk 0:00:50]}  Ke5 {[%clk 0:00:39]} 39. Nc4+ {[%clk 0:00:49]}  Kf5 {[%clk 0:00:37]} 40. Nd6+ {[%clk 0:00:48]} 1-0


[Site "https://www.chess.com"]

[Event "Titled Tuesday Blitz November 08 Late 2022"]
[White "Ali Abdullahi, Farah"]
[Black "Floresvillar Gonzalez, Luis Migu"]
[WhiteFideId "16100212"]
[BlackFideId "5100542"]
[WhiteElo "2263"]
[BlackElo "2040"]
[Result "1-0"]
[Round "05"]
[TimeControl "180+1"]
[Date "2022.11.09"]
[WhiteClock "0:02:30"]
[BlackClock "0:02:08"]

1. b3 {[%clk 0:02:59]}  e5 {[%clk 0:02:53]} 2. Bb2 {[%clk 0:02:59]}  Nc6 {[%clk 0:02:49]} 3. e3 {[%clk 0:02:58]}  Bc5 {[%clk 0:02:49]} 4. Bb5 {[%clk 0:02:56]}  Nge7 {[%clk 0:02:40]} 5. Nf3 {[%clk 0:02:54]}  d6 {[%clk 0:02:34]} 6. d4 {[%clk 0:02:53]}  exd4 {[%clk 0:02:33]} 7. exd4 {[%clk 0:02:54]}  Bb4+ {[%clk 0:02:32]} 8. c3 {[%clk 0:02:54]}  Ba5 {[%clk 0:02:31]} 9. b4 {[%clk 0:02:42]}  Bb6 {[%clk 0:02:30]} 10. d5 {[%clk 0:02:42]}  a6 {[%clk 0:02:29]} 11. Ba4 {[%clk 0:02:41]}  Bxf2+ {[%clk 0:02:14]} 12. Kxf2 {[%clk 0:02:40]}  b5 {[%clk 0:02:14]} 13. dxc6 {[%clk 0:02:37]}  bxa4 {[%clk 0:02:14]} 14. Re1 {[%clk 0:02:35]}  O-O {[%clk 0:02:13]} 15. c4 {[%clk 0:02:35]}  Nxc6 {[%clk 0:02:11]} 16. Qxa4 {[%clk 0:02:34]}  Bb7 {[%clk 0:02:10]} 17. Qc2 {[%clk 0:02:31]}  Nxb4 {[%clk 0:02:09]} 18. Qc3 {[%clk 0:02:31]}  a5 {[%clk 0:02:08]} 19. Qxg7# {[%clk 0:02:30]} 1-0


[Site "https://www.chess.com"]

[Event "Titled Tuesday Blitz November 08 Late 2022"]
[White "Annaberdiyev, Babageldi"]
[Black "Rangel, Daniel"]
[WhiteFideId "14000385"]
[BlackFideId "2124475"]
[WhiteElo "2332"]
[BlackElo "2225"]
[Result "0-1"]
[Round "05"]
[TimeControl "180+1"]
[Date "2022.11.09"]
[WhiteClock "0:01:21"]
[BlackClock "0:00:33"]

1. e4 {[%clk 0:02:58]}  c5 {[%clk 0:02:59]} 2. Nf3 {[%clk 0:02:58]}  g6 {[%clk 0:02:59]} 3. d4 {[%clk 0:02:58]}  cxd4 {[%clk 0:03:00]} 4. Qxd4 {[%clk 0:02:58]}  Nf6 {[%clk 0:03:00]} 5. e5 {[%clk 0:02:59]}  Nc6 {[%clk 0:03:00]} 6. Qh4 {[%clk 0:03:00]}  Nxe5 {[%clk 0:02:58]} 7. Nxe5 {[%clk 0:03:00]}  Qa5+ {[%clk 0:02:59]} 8. Nc3 {[%clk 0:03:01]}  Qxe5+ {[%clk 0:02:59]} 9. Be3 {[%clk 0:03:02]}  Bg7 {[%clk 0:02:59]} 10. O-O-O {[%clk 0:03:03]}  O-O {[%clk 0:02:59]} 11. Bc4 {[%clk 0:03:03]}  d5 {[%clk 0:02:40]} 12. Bd4 {[%clk 0:03:02]}  Qd6 {[%clk 0:02:34]} 13. Nxd5 {[%clk 0:02:56]}  Nxd5 {[%clk 0:02:21]} 14. Bxg7 {[%clk 0:02:56]}  Kxg7 {[%clk 0:02:21]} 15. Rxd5 {[%clk 0:02:55]}  Qf6 {[%clk 0:02:21]} 16. Qxf6+ {[%clk 0:02:54]}  Kxf6 {[%clk 0:02:19]} 17. Rc5 {[%clk 0:02:52]}  Bf5 {[%clk 0:02:14]} 18. Bb3 {[%clk 0:02:38]}  Rac8 {[%clk 0:02:00]} 19. Rxc8 {[%clk 0:02:38]}  Rxc8 {[%clk 0:02:01]} 20. Rd1 {[%clk 0:02:30]}  h5 {[%clk 0:01:59]} 21. c3 {[%clk 0:02:28]}  e5 {[%clk 0:01:51]} 22. Bc2 {[%clk 0:02:25]}  Bxc2 {[%clk 0:01:51]} 23. Kxc2 {[%clk 0:02:26]}  Ke6 {[%clk 0:01:51]} 24. a4 {[%clk 0:02:13]}  h4 {[%clk 0:01:47]} 25. h3 {[%clk 0:02:08]}  f5 {[%clk 0:01:47]} 26. b4 {[%clk 0:02:02]}  g5 {[%clk 0:01:45]} 27. Kb3 {[%clk 0:01:58]}  e4 {[%clk 0:01:39]} 28. c4 {[%clk 0:01:57]}  Rc7 {[%clk 0:00:59]} 29. c5 {[%clk 0:01:55]}  Rd7 {[%clk 0:00:59]} 30. Rxd7 {[%clk 0:01:40]}  Kxd7 {[%clk 0:00:58]} 31. Kc4 {[%clk 0:01:41]}  f4 {[%clk 0:00:34]} 32. Kd4 {[%clk 0:01:39]}  g4 {[%clk 0:00:34]} 33. Kxe4 {[%clk 0:01:21]}  f3 {[%clk 0:00:33]} 34. gxf3 {[%clk 0:01:21]}  gxh3 {[%clk 0:00:33]} 0-1


[Site "https://www.chess.com"]

[Event "Titled Tuesday Blitz November 08 Late 2022"]
[White "Banzea, Alexandru-Bogdan"]
[Black "Zhu, Jiner"]
[WhiteFideId "1232622"]
[BlackFideId "8608059"]
[WhiteElo "2294"]
[BlackElo "2384"]
[Result "1/2-1/2"]
[Round "05"]
[TimeControl "180+1"]
[Date "2022.11.09"]
[WhiteClock "0:00:04"]
[BlackClock "0:00:05"]

1. d4 {[%clk 0:03:00]}  Nf6 {[%clk 0:02:59]} 2. Bf4 {[%clk 0:03:00]}  g6 {[%clk 0:02:58]} 3. Nf3 {[%clk 0:02:57]}  Bg7 {[%clk 0:02:57]} 4. c3 {[%clk 0:02:58]}  O-O {[%clk 0:02:57]} 5. Nbd2 {[%clk 0:02:56]}  d5 {[%clk 0:02:57]} 6. e3 {[%clk 0:02:57]}  c5 {[%clk 0:02:57]} 7. dxc5 {[%clk 0:02:58]}  Nbd7 {[%clk 0:02:43]} 8. Nb3 {[%clk 0:02:57]}  e6 {[%clk 0:02:41]} 9. Bd6 {[%clk 0:02:49]}  Re8 {[%clk 0:02:41]} 10. Bb5 {[%clk 0:02:49]}  a6 {[%clk 0:02:40]} 11. c6 {[%clk 0:02:18]}  Nb6 {[%clk 0:02:04]} 12. cxb7 {[%clk 0:01:29]}  Bxb7 {[%clk 0:02:05]} 13. Bxe8 {[%clk 0:01:24]}  Qxd6 {[%clk 0:02:04]} 14. Na5 {[%clk 0:01:10]}  Qc7 {[%clk 0:01:54]} 15. Ba4 {[%clk 0:00:55]}  Nxa4 {[%clk 0:01:37]} 16. Qxa4 {[%clk 0:00:55]}  Bc8 {[%clk 0:01:37]} 17. Qc6 {[%clk 0:00:50]}  Qb8 {[%clk 0:01:32]} 18. O-O {[%clk 0:00:45]}  Bd7 {[%clk 0:01:26]} 19. Qb7 {[%clk 0:00:39]}  Qe8 {[%clk 0:01:25]} 20. Nb3 {[%clk 0:00:36]}  Bb5 {[%clk 0:01:22]} 21. Rfe1 {[%clk 0:00:32]}  Rb8 {[%clk 0:01:20]} 22. Qc7 {[%clk 0:00:27]}  Rc8 {[%clk 0:01:17]} 23. Qf4 {[%clk 0:00:26]}  Ne4 {[%clk 0:01:15]} 24. Nfd2 {[%clk 0:00:24]}  e5 {[%clk 0:01:08]} 25. Qf3 {[%clk 0:00:24]}  Bd3 {[%clk 0:01:06]} 26. Nxe4 {[%clk 0:00:23]}  Bxe4 {[%clk 0:01:07]} 27. Qd1 {[%clk 0:00:23]}  Qb5 {[%clk 0:01:06]} 28. Nd2 {[%clk 0:00:12]}  Bf5 {[%clk 0:01:03]} 29. Qb3 {[%clk 0:00:11]}  Qc6 {[%clk 0:01:01]} 30. Rad1 {[%clk 0:00:08]}  Be6 {[%clk 0:01:01]} 31. Nf3 {[%clk 0:00:07]}  Qc7 {[%clk 0:00:59]} 32. Qa4 {[%clk 0:00:06]}  Qb6 {[%clk 0:00:59]} 33. Qb4 {[%clk 0:00:05]}  Qc7 {[%clk 0:00:57]} 34. Qa3 {[%clk 0:00:05]}  Qc6 {[%clk 0:00:56]} 35. Qb4 {[%clk 0:00:04]}  h5 {[%clk 0:00:55]} 36. Qh4 {[%clk 0:00:05]}  Rb8 {[%clk 0:00:54]} 37. Qg3 {[%clk 0:00:04]}  Qc7 {[%clk 0:00:51]} 38. Rd2 {[%clk 0:00:04]}  Bf6 {[%clk 0:00:49]} 39. Red1 {[%clk 0:00:05]}  Kg7 {[%clk 0:00:49]} 40. h4 {[%clk 0:00:05]}  Rb5 {[%clk 0:00:48]} 41. Ng5 {[%clk 0:00:05]}  Bxg5 {[%clk 0:00:46]} 42. Qxg5 {[%clk 0:00:06]}  Qb8 {[%clk 0:00:46]} 43. Qg3 {[%clk 0:00:06]}  Kh7 {[%clk 0:00:45]} 44. f3 {[%clk 0:00:06]}  a5 {[%clk 0:00:45]} 45. Qf2 {[%clk 0:00:06]}  a4 {[%clk 0:00:45]} 46. Qe2 {[%clk 0:00:06]}  Qa7 {[%clk 0:00:45]} 47. Kh2 {[%clk 0:00:06]}  Qb6 {[%clk 0:00:45]} 48. e4 {[%clk 0:00:06]}  dxe4 {[%clk 0:00:44]} 49. Qxe4 {[%clk 0:00:07]}  Qc5 {[%clk 0:00:43]} 50. b4 {[%clk 0:00:07]}  axb3 {[%clk 0:00:42]} 51. axb3 {[%clk 0:00:07]}  Rxb3 {[%clk 0:00:43]} 52. Rd8 {[%clk 0:00:07]}  Rxc3 {[%clk 0:00:42]} 53. Qa8 {[%clk 0:00:07]}  Qe7 {[%clk 0:00:35]} 54. Rh8+ {[%clk 0:00:08]}  Kg7 {[%clk 0:00:35]} 55. Qg8+ {[%clk 0:00:08]}  Kf6 {[%clk 0:00:35]} 56. Qd8 {[%clk 0:00:07]}  Rc4 {[%clk 0:00:34]} 57. Qxe7+ {[%clk 0:00:07]}  Kxe7 {[%clk 0:00:35]} 58. Ra8 {[%clk 0:00:07]}  Rxh4+ {[%clk 0:00:35]} 59. Kg3 {[%clk 0:00:08]}  Rc4 {[%clk 0:00:36]} 60. Ra7+ {[%clk 0:00:09]}  Kf6 {[%clk 0:00:36]} 61. Rb1 {[%clk 0:00:09]}  h4+ {[%clk 0:00:34]} 62. Kh2 {[%clk 0:00:09]}  Rc2 {[%clk 0:00:34]} 63. Rb6 {[%clk 0:00:09]}  Kf5 {[%clk 0:00:32]} 64. Ra5 {[%clk 0:00:07]}  Kf6 {[%clk 0:00:28]} 65. Rbb5 {[%clk 0:00:07]}  Re2 {[%clk 0:00:28]} 66. Rb4 {[%clk 0:00:06]}  h3 {[%clk 0:00:28]} 67. Kh1 {[%clk 0:00:06]}  Rxg2 {[%clk 0:00:27]} 68. f4 {[%clk 0:00:06]}  Re2 {[%clk 0:00:24]} 69. fxe5+ {[%clk 0:00:06]}  Rxe5 {[%clk 0:00:23]} 70. Rf4+ {[%clk 0:00:06]}  Bf5 {[%clk 0:00:24]} 71. Rxe5 {[%clk 0:00:06]}  Kxe5 {[%clk 0:00:25]} 72. Rf2 {[%clk 0:00:06]}  g5 {[%clk 0:00:25]} 73. Kh2 {[%clk 0:00:07]}  Be6 {[%clk 0:00:24]} 74. Kg3 {[%clk 0:00:08]}  f6 {[%clk 0:00:23]} 75. Re2+ {[%clk 0:00:08]}  Kf5 {[%clk 0:00:22]} 76. Rf2+ {[%clk 0:00:08]}  Kg6 {[%clk 0:00:22]} 77. Rb2 {[%clk 0:00:09]}  Bf5 {[%clk 0:00:22]} 78. Rb6 {[%clk 0:00:10]}  Bd7 {[%clk 0:00:18]} 79. Rd6 {[%clk 0:00:10]}  Bb5 {[%clk 0:00:18]} 80. Rd5 {[%clk 0:00:10]}  Bf1 {[%clk 0:00:18]} 81. Rd6 {[%clk 0:00:10]}  Bg2 {[%clk 0:00:18]} 82. Rb6 {[%clk 0:00:11]}  Kf7 {[%clk 0:00:17]} 83. Rb5 {[%clk 0:00:10]}  Ke6 {[%clk 0:00:17]} 84. Rb6+ {[%clk 0:00:10]}  Ke5 {[%clk 0:00:17]} 85. Rb5+ {[%clk 0:00:11]}  Ke4 {[%clk 0:00:17]} 86. Rb4+ {[%clk 0:00:11]}  Kd5 {[%clk 0:00:15]} 87. Rb5+ {[%clk 0:00:11]}  Kd6 {[%clk 0:00:14]} 88. Ra5 {[%clk 0:00:11]}  Ke6 {[%clk 0:00:12]} 89. Ra6+ {[%clk 0:00:11]}  Kf7 {[%clk 0:00:11]} 90. Ra5 {[%clk 0:00:12]}  Be4 {[%clk 0:00:11]} 91. Kxh3 {[%clk 0:00:11]}  f5 {[%clk 0:00:11]} 92. Kg3 {[%clk 0:00:11]}  Kg6 {[%clk 0:00:11]} 93. Ra6+ {[%clk 0:00:11]}  Kh5 {[%clk 0:00:11]} 94. Ra7 {[%clk 0:00:12]}  f4+ {[%clk 0:00:11]} 95. Kf2 {[%clk 0:00:13]}  Kg4 {[%clk 0:00:08]} 96. Rg7 {[%clk 0:00:13]}  Kh4 {[%clk 0:00:08]} 97. Rg8 {[%clk 0:00:12]}  g4 {[%clk 0:00:08]} 98. Rh8+ {[%clk 0:00:13]}  Kg5 {[%clk 0:00:09]} 99. Rg8+ {[%clk 0:00:13]}  Bg6 {[%clk 0:00:09]} 100. Rg7 {[%clk 0:00:12]}  Kf6 {[%clk 0:00:08]} 101. Ra7 {[%clk 0:00:12]}  Kg5 {[%clk 0:00:07]} 102. Rg7 {[%clk 0:00:11]}  Kh6 {[%clk 0:00:07]} 103. Ra7 {[%clk 0:00:11]}  Bh5 {[%clk 0:00:07]} 104. Ra5 {[%clk 0:00:11]}  Kg6 {[%clk 0:00:07]} 105. Rb5 {[%clk 0:00:10]}  g3+ {[%clk 0:00:06]} 106. Kg2 {[%clk 0:00:10]}  Bg4 {[%clk 0:00:07]} 107. Rb6+ {[%clk 0:00:09]}  Kg5 {[%clk 0:00:07]} 108. Rb8 {[%clk 0:00:09]}  Kh4 {[%clk 0:00:05]} 109. Rh8+ {[%clk 0:00:08]}  Bh5 {[%clk 0:00:05]} 110. Rf8 {[%clk 0:00:08]}  Kg5 {[%clk 0:00:04]} 111. Rg8+ {[%clk 0:00:08]}  Bg6 {[%clk 0:00:04]} 112. Rf8 {[%clk 0:00:08]}  Be4+ {[%clk 0:00:04]} 113. Kg1 {[%clk 0:00:06]}  Kg4 {[%clk 0:00:04]} 114. Kf1 {[%clk 0:00:05]}  Kf3 {[%clk 0:00:04]} 115. Kg1 {[%clk 0:00:05]}  Kg4 {[%clk 0:00:03]} 116. Rg8+ {[%clk 0:00:05]}  Kf5 {[%clk 0:00:03]} 117. Rf8+ {[%clk 0:00:06]}  Ke5 {[%clk 0:00:02]} 118. Re8+ {[%clk 0:00:06]}  Kd4 {[%clk 0:00:03]} 119. Rg8 {[%clk 0:00:05]}  Ke3 {[%clk 0:00:02]} 120. Rg7 {[%clk 0:00:05]}  Bf5 {[%clk 0:00:02]} 121. Rg8 {[%clk 0:00:05]}  Kf3 {[%clk 0:00:02]} 122. Rf8 {[%clk 0:00:05]}  Kg4 {[%clk 0:00:01]} 123. Rg8+ {[%clk 0:00:05]}  Kh4 {[%clk 0:00:02]} 124. Rf8 {[%clk 0:00:06]}  Kg5 {[%clk 0:00:01]} 125. Rg8+ {[%clk 0:00:07]}  Bg6 {[%clk 0:00:01]} 126. Rf8 {[%clk 0:00:08]}  Kg4 {[%clk 0:00:01]} 127. Rg8 {[%clk 0:00:07]}  Kf5 {[%clk 0:00:01]} 128. Rf8+ {[%clk 0:00:08]}  Ke4 {[%clk 0:00:02]} 129. Rg8 {[%clk 0:00:09]}  Bh5 {[%clk 0:00:02]} 130. Rg7 {[%clk 0:00:07]}  Bf3 {[%clk 0:00:02]} 131. Rg8 {[%clk 0:00:07]}  Be2 {[%clk 0:00:02]} 132. Re8+ {[%clk 0:00:06]}  Kf3 {[%clk 0:00:03]} 133. Rf8 {[%clk 0:00:06]}  Bc4 {[%clk 0:00:03]} 134. Rf6 {[%clk 0:00:05]}  Kg4 {[%clk 0:00:04]} 135. Rg6+ {[%clk 0:00:05]}  Kf5 {[%clk 0:00:04]} 136. Rg7 {[%clk 0:00:04]}  f3 {[%clk 0:00:04]} 137. Rxg3 {[%clk 0:00:03]}  Kf4 {[%clk 0:00:04]} 138. Rxf3+ {[%clk 0:00:04]}  Kxf3 {[%clk 0:00:05]} 1/2-1/2


[Site "https://www.chess.com"]

[Event "Titled Tuesday Blitz November 08 Late 2022"]
[White "Becerra, Juan David"]
[Black "Goryachkina, Aleksandra"]
[WhiteFideId "4404998"]
[BlackFideId "4147103"]
[WhiteElo "2281"]
[BlackElo "2484"]
[Result "1-0"]
[Round "05"]
[TimeControl "180+1"]
[Date "2022.11.09"]
[WhiteClock "0:01:31"]
[BlackClock "0:00:03"]

1. e4 {[%clk 0:03:00]}  c5 {[%clk 0:02:57]} 2. d4 {[%clk 0:03:00]}  cxd4 {[%clk 0:02:56]} 3. c3 {[%clk 0:03:00]}  dxc3 {[%clk 0:02:56]} 4. Nxc3 {[%clk 0:03:01]}  Nc6 {[%clk 0:02:56]} 5. Nf3 {[%clk 0:03:01]}  e6 {[%clk 0:02:55]} 6. Bf4 {[%clk 0:03:01]}  a6 {[%clk 0:02:46]} 7. e5 {[%clk 0:03:01]}  Nge7 {[%clk 0:02:40]} 8. Bd3 {[%clk 0:03:01]}  Ng6 {[%clk 0:02:34]} 9. Bg3 {[%clk 0:03:01]}  Qa5 {[%clk 0:02:24]} 10. Qe2 {[%clk 0:02:59]}  Be7 {[%clk 0:02:00]} 11. O-O {[%clk 0:02:57]}  O-O {[%clk 0:01:58]} 12. a3 {[%clk 0:02:54]}  Rd8 {[%clk 0:01:54]} 13. b4 {[%clk 0:02:53]}  Qc7 {[%clk 0:01:54]} 14. Rac1 {[%clk 0:02:53]}  b5 {[%clk 0:01:43]} 15. h4 {[%clk 0:02:53]}  Nf8 {[%clk 0:01:34]} 16. Ne4 {[%clk 0:02:53]}  Bb7 {[%clk 0:01:30]} 17. h5 {[%clk 0:02:52]}  h6 {[%clk 0:01:27]} 18. Nh2 {[%clk 0:02:42]}  Qb6 {[%clk 0:01:23]} 19. Qg4 {[%clk 0:02:41]}  Kh8 {[%clk 0:01:09]} 20. Rfd1 {[%clk 0:02:34]}  Rac8 {[%clk 0:00:47]} 21. Qf4 {[%clk 0:02:34]}  Nd4 {[%clk 0:00:27]} 22. Nc5 {[%clk 0:02:24]}  Nf5 {[%clk 0:00:17]} 23. Bxf5 {[%clk 0:02:19]}  exf5 {[%clk 0:00:17]} 24. Qxf5 {[%clk 0:02:15]}  Bxc5 {[%clk 0:00:17]} 25. bxc5 {[%clk 0:02:16]}  Qe6 {[%clk 0:00:15]} 26. Qf4 {[%clk 0:02:10]}  Rc6 {[%clk 0:00:12]} 27. Rd6 {[%clk 0:02:03]}  Rxd6 {[%clk 0:00:12]} 28. cxd6 {[%clk 0:02:04]}  Bc6 {[%clk 0:00:08]} 29. Ng4 {[%clk 0:02:02]}  Nh7 {[%clk 0:00:06]} 30. Bh4 {[%clk 0:02:00]}  Re8 {[%clk 0:00:07]} 31. Be7 {[%clk 0:02:00]}  Qd5 {[%clk 0:00:06]} 32. f3 {[%clk 0:01:56]}  Qe6 {[%clk 0:00:05]} 33. Kh2 {[%clk 0:01:56]}  Rxe7 {[%clk 0:00:04]} 34. dxe7 {[%clk 0:01:55]}  Qxe7 {[%clk 0:00:05]} 35. Ne3 {[%clk 0:01:47]}  Ng5 {[%clk 0:00:05]} 36. Nf5 {[%clk 0:01:39]}  Qe6 {[%clk 0:00:05]} 37. Nd4 {[%clk 0:01:39]}  Qd5 {[%clk 0:00:05]} 38. Nxc6 {[%clk 0:01:39]}  dxc6 {[%clk 0:00:05]} 39. Rc2 {[%clk 0:01:34]}  Kg8 {[%clk 0:00:05]} 40. Rd2 {[%clk 0:01:34]}  Qe6 {[%clk 0:00:05]} 41. Rd8+ {[%clk 0:01:33]}  Kh7 {[%clk 0:00:06]} 42. Qd4 {[%clk 0:01:33]}  Qe7 {[%clk 0:00:03]} 43. Qd3+ {[%clk 0:01:30]}  g6 {[%clk 0:00:03]} 44. hxg6+ {[%clk 0:01:31]} 1-0


[Site "https://www.chess.com"]

[Event "Titled Tuesday Blitz November 08 Late 2022"]
[White "Bilan, Danila"]
[Black "De Souza, Cristiano Gomes"]
[WhiteFideId "24161918"]
[BlackFideId "2151758"]
[WhiteElo "2173"]
[BlackElo "2068"]
[Result "0-1"]
[Round "05"]
[TimeControl "180+1"]
[Date "2022.11.09"]
[WhiteClock "0:00:02"]
[BlackClock "0:00:57"]

1. d4 {[%clk 0:02:48]}  Nf6 {[%clk 0:02:59]} 2. Nf3 {[%clk 0:02:46]}  g6 {[%clk 0:02:59]} 3. Bg5 {[%clk 0:02:44]}  h6 {[%clk 0:02:59]} 4. Bh4 {[%clk 0:02:44]}  d6 {[%clk 0:02:58]} 5. Nbd2 {[%clk 0:02:43]}  g5 {[%clk 0:02:57]} 6. Bg3 {[%clk 0:02:43]}  Nh5 {[%clk 0:02:58]} 7. e4 {[%clk 0:02:42]}  Bg7 {[%clk 0:02:58]} 8. c3 {[%clk 0:02:40]}  e6 {[%clk 0:02:57]} 9. Bc4 {[%clk 0:02:39]}  Qe7 {[%clk 0:02:57]} 10. O-O {[%clk 0:02:38]}  Nd7 {[%clk 0:02:56]} 11. Qe2 {[%clk 0:02:29]}  Nf8 {[%clk 0:02:55]} 12. Ne1 {[%clk 0:02:24]}  Nxg3 {[%clk 0:02:54]} 13. hxg3 {[%clk 0:02:25]}  Ng6 {[%clk 0:02:54]} 14. Nd3 {[%clk 0:02:22]}  Bd7 {[%clk 0:02:52]} 15. a4 {[%clk 0:02:17]}  O-O-O {[%clk 0:02:49]} 16. a5 {[%clk 0:02:17]}  h5 {[%clk 0:02:44]} 17. a6 {[%clk 0:02:15]}  b6 {[%clk 0:02:44]} 18. Nb4 {[%clk 0:02:09]}  c5 {[%clk 0:02:39]} 19. dxc5 {[%clk 0:02:02]}  dxc5 {[%clk 0:02:38]} 20. Nd3 {[%clk 0:02:02]}  Bc6 {[%clk 0:02:32]} 21. Rfc1 {[%clk 0:01:53]}  h4 {[%clk 0:02:31]} 22. g4 {[%clk 0:01:36]}  h3 {[%clk 0:02:27]} 23. g3 {[%clk 0:01:32]}  h2+ {[%clk 0:02:25]} 24. Kh1 {[%clk 0:01:29]}  f5 {[%clk 0:02:20]} 25. b4 {[%clk 0:01:16]}  Rxd3 {[%clk 0:02:14]} 26. Bxd3 {[%clk 0:01:09]}  Ne5 {[%clk 0:02:05]} 27. gxf5 {[%clk 0:00:28]}  exf5 {[%clk 0:02:03]} 28. Bb1 {[%clk 0:00:25]}  g4 {[%clk 0:01:51]} 29. Ra2 {[%clk 0:00:15]}  Bh6 {[%clk 0:01:49]} 30. Rd1 {[%clk 0:00:08]}  Bxd2 {[%clk 0:01:43]} 31. Raxd2 {[%clk 0:00:08]}  Nf3 {[%clk 0:01:38]} 32. Rd6 {[%clk 0:00:08]}  Kc7 {[%clk 0:01:31]} 33. Ba2 {[%clk 0:00:05]}  Bxe4 {[%clk 0:01:24]} 34. Rd7+ {[%clk 0:00:03]}  Qxd7 {[%clk 0:01:23]} 35. Rxd7+ {[%clk 0:00:04]}  Kxd7 {[%clk 0:01:23]} 36. Qd1+ {[%clk 0:00:01]}  Ke7 {[%clk 0:01:22]} 37. Bd5 {[%clk 0:00:01]}  Rd8 {[%clk 0:01:09]} 38. c4 {[%clk 0:00:01]}  cxb4 {[%clk 0:01:05]} 39. Qe2 {[%clk 0:00:01]}  Nd4+ {[%clk 0:00:57]} 40. Qxe4+ {[%clk 0:00:02]} 0-1


[Site "https://www.chess.com"]

[Event "Titled Tuesday Blitz November 08 Late 2022"]
[White "Bortnyk, Mykola"]
[Black "Maksimovic, Bojan"]
[WhiteFideId "14120836"]
[BlackFideId "14408120"]
[WhiteElo "2582"]
[BlackElo "2447"]
[Result "0-1"]
[Round "05"]
[TimeControl "180+1"]
[Date "2022.11.08"]
[WhiteClock "0:00:57"]
[BlackClock "0:01:00"]

1. e4 {[%clk 0:03:00]}  g6 {[%clk 0:03:00]} 2. d4 {[%clk 0:03:00]}  Bg7 {[%clk 0:03:01]} 3. Nc3 {[%clk 0:03:00]}  d6 {[%clk 0:03:02]} 4. h3 {[%clk 0:03:01]}  a6 {[%clk 0:03:02]} 5. g4 {[%clk 0:03:01]}  b5 {[%clk 0:03:01]} 6. Bg2 {[%clk 0:03:01]}  Bb7 {[%clk 0:03:00]} 7. a3 {[%clk 0:03:01]}  Nd7 {[%clk 0:03:00]} 8. Nge2 {[%clk 0:03:00]}  c5 {[%clk 0:02:57]} 9. Be3 {[%clk 0:03:01]}  Rc8 {[%clk 0:02:52]} 10. O-O {[%clk 0:02:58]}  cxd4 {[%clk 0:02:49]} 11. Bxd4 {[%clk 0:02:56]}  Ngf6 {[%clk 0:02:30]} 12. Be3 {[%clk 0:02:44]}  Qc7 {[%clk 0:02:27]} 13. Ng3 {[%clk 0:02:40]}  O-O {[%clk 0:02:27]} 14. Rc1 {[%clk 0:02:30]}  Nb6 {[%clk 0:02:27]} 15. Qe2 {[%clk 0:02:07]}  Nc4 {[%clk 0:02:24]} 16. Nd1 {[%clk 0:02:07]}  Nxe3 {[%clk 0:02:24]} 17. Nxe3 {[%clk 0:02:04]}  Nd7 {[%clk 0:02:24]} 18. c3 {[%clk 0:02:04]}  Ne5 {[%clk 0:02:25]} 19. f4 {[%clk 0:02:03]}  Nc4 {[%clk 0:02:25]} 20. Kh2 {[%clk 0:02:01]}  Nxe3 {[%clk 0:02:21]} 21. Qxe3 {[%clk 0:02:02]}  Qc5 {[%clk 0:02:21]} 22. Qf3 {[%clk 0:01:59]}  e5 {[%clk 0:02:00]} 23. f5 {[%clk 0:01:53]}  Bh6 {[%clk 0:02:00]} 24. Rcd1 {[%clk 0:01:53]}  Bf4 {[%clk 0:01:59]} 25. Kh1 {[%clk 0:01:53]}  Rcd8 {[%clk 0:01:50]} 26. Ne2 {[%clk 0:01:40]}  g5 {[%clk 0:01:50]} 27. Nxf4 {[%clk 0:01:33]}  exf4 {[%clk 0:01:48]} 28. Qd3 {[%clk 0:01:34]}  Rfe8 {[%clk 0:01:47]} 29. Rfe1 {[%clk 0:01:30]}  Kg7 {[%clk 0:01:39]} 30. Qd4+ {[%clk 0:01:26]}  Qxd4 {[%clk 0:01:24]} 31. cxd4 {[%clk 0:01:27]}  Re7 {[%clk 0:01:12]} 32. e5 {[%clk 0:01:16]}  Bxg2+ {[%clk 0:01:08]} 33. Kxg2 {[%clk 0:01:15]}  dxe5 {[%clk 0:01:09]} 34. dxe5 {[%clk 0:01:16]}  Rxe5 {[%clk 0:01:09]} 35. f6+ {[%clk 0:01:17]}  Kxf6 {[%clk 0:01:09]} 36. Rxe5 {[%clk 0:01:01]}  Rxd1 {[%clk 0:01:09]} 37. Rf5+ {[%clk 0:01:01]}  Kg6 {[%clk 0:01:09]} 38. h4 {[%clk 0:01:02]}  Rd2+ {[%clk 0:01:01]} 39. Kh3 {[%clk 0:01:02]}  h6 {[%clk 0:01:01]} 40. h5+ {[%clk 0:00:57]}  Kg7 {[%clk 0:01:01]} 41. a4 {[%clk 0:00:56]}  Rxb2 {[%clk 0:01:00]} 42. axb5 {[%clk 0:00:57]}  Rxb5 {[%clk 0:01:00]} 0-1


[Site "https://www.chess.com"]